Cogmind - Beta 13 *** ADVENTURER MODE // 2024.07.22 @ 12:21:38 Player: Jefffff Result: Destroyed by H-66 Slayer with Gauss Rifle Performance ------------- Evolutions (5) 2500 Regions Visited (9) 1800 Robots Destroyed (205) 1025 Value Destroyed (6801) 6801 Prototype IDs (15) 300 Alien Tech Used (0) 0 Bonus (741) 741 TOTAL SCORE: 13167 Bonus ------- High Alert Combat Kills 107 Follower Combat Kills 1223 Friendly Fire -589 Cogmind --------- Core Integrity 0/1000 Matter 121/300 Energy 9/100 System Corruption 7% Temperature Cool (0) Movement Flying (40) Location -5/Factory Parts ------- > --- POWER (2) -------- (None) > --- PROPULSION (5) --- Xenon Bombardment Thruster > --- UTILITY (8) ------ Advanced Signal Interpreter > --- WEAPON (2) ------- Lightning Gun > --- INVENTORY (5) ---- Micro Fission Core Advanced Heat Sink Advanced Heat Sink Improved Cooling System Remote Datajack Peak State ------------ > --- POWER ------------ Reinforced Deuterium Engine Enhanced Fission Core > --- PROPULSION ------- Improved Medium Treads Improved Medium Treads Improved Medium Treads Flexi-carbon Leg Flexi-carbon Leg > --- UTILITY ---------- Advanced Cooling System Huge Storage Unit Advanced Targeting Computer Core Analyzer Improved Kinecellerator Improved Kinecellerator Improved Light Armor Plating Splice Drone Bay > --- WEAPON ----------- Phase Cannon Gauss Rifle > --- INVENTORY -------- Heavy Deuterium Engine Enhanced Fission Core Micro Fission Core Improved Carbon-fiber Leg Flexi-carbon Leg Improved Cooling System Advanced Weight Redist. System Machine Analyzer Improved Signal Interpreter Improved Salvage Targeting Computer Core Analyzer Armor Integrity Analyzer Recoil Stabilizer Improved Particle Charger Kinecellerator Improved Kinecellerator Advanced ECM Suite Recalibrator Remote Datajack Chainsword Phasing Sabre [Rating: 90] Favorites ----------- Power Cold Fusion Reactor Engine Ion Engine Power Core Light Nuclear Core Reactor Cold Fusion Reactor Propulsion Light Treads Treads Light Treads Leg Aluminum Leg Wheel Wheel Flight Unit Xenon Bombardment Thruster Utility Improved Targeting Computer Device Component Analysis Suite Storage Huge Storage Unit Processor Improved Targeting Computer Protection Layered Light Armor Plating Weapon Improved Spread Laser Energy Gun Improved Spread Laser Energy Cannon Phase Cannon Ballistic Gun Light Assault Rifle Ballistic Cannon Magnetic Acceleration Cannon Special Weapon Remote Datajack Impact Weapon Heavy Hammer Slashing Weapon Chainsword Build | -11 -10 -9 -9 -8 -8 -7 -6 -6 -5 ------- Run | Yrd Mat Mat Min Mat Sto Fac Fac Ext Fac Slots Evolved 10 | . . 2 . 2 . 2 2 . 2 Power 1 | . . . . . . . 1 . . Propulsion 3 | . . . . 2 . . . . 1 Utility 6 | . . 2 . . . 2 1 . 1 Weapon . | . . . . . . . . . . Parts Attached 190 | 7 5 28 1 10 25 38 14 25 37 Power 26 | 1 . 4 . 1 4 3 3 6 4 Engine 17 | 1 . 4 . 1 1 2 2 5 1 Core 7 | . . . . . 3 . 1 . 3 Reactor 2 | . . . . . . 1 . 1 . Propulsion 50 | 2 2 10 . 4 7 9 1 6 9 Treads 26 | . . 3 . 4 7 4 1 6 1 Leg 13 | . . 4 . . . 5 . . 4 Wheel 9 | 2 2 3 . . . . . . 2 Hover . | . . . . . . . . . . Flight 2 | . . . . . . . . . 2 Utility 72 | 1 1 9 1 4 4 17 6 12 17 Device 49 | . . 9 1 3 3 11 4 8 10 Storage 4 | 1 1 . . . . 1 . . 1 Processor 7 | . . . . . 1 3 . . 3 Hackware . | . . . . . . . . . . Protection 12 | . . . . 1 . 2 2 4 3 Artifact . | . . . . . . . . . . Weapon 42 | 3 2 5 . 1 10 9 4 1 7 Energy Gun 19 | 1 . . . . 5 8 3 . 2 Energy Cannon 7 | . . 3 . . 2 . 1 . 1 Ballistic Gun 8 | 2 1 1 . . 2 . . . 2 Ballistic Cannon 2 | . . 1 . . . . . 1 . Launcher . | . . . . . . . . . . Special Weapon 1 | . . . . . . 1 . . . Impact Weapon 1 | . 1 . . . . . . . . Slashing Weapon 4 | . . . . 1 1 . . . 2 Piercing Weapon . | . . . . . . . . . . Special Melee Weapon . | . . . . . . . . . . Unidentified Prototypes 12 | . . 1 . . 5 5 . . 1 Corrupted Parts 2 | . 1 . . . . . . 1 . System Corruption 10 | . 8 . . . . . . 2 . Parts Lost 42 | . 2 3 . . 4 5 1 1 26 Power 6 | . 1 . . . 1 . 1 . 3 Propulsion 18 | . 1 2 . . 1 3 . 1 10 Utility 11 | . . 1 . . 1 1 . . 8 Weapon 7 | . . . . . 1 1 . . 5 Highest Loss Streak 17 | . 2 2 . . 1 4 1 1 17 To Critical Strikes 1 | . . . . . . . . . 1 Average Slot Usage (%) 94 | . 69 90 100 97 95 94 99 99 88 Engine 5 | . 3 11 11 9 7 . 5 7 7 Core 1 | . . . . . . . 6 1 2 Reactor 2 | . . . . . . 6 . 3 . Treads 20 | . . 1 22 33 34 19 26 25 21 Leg 3 | . . 11 . . . 5 . . 1 Wheel 1 | . 22 6 . . . . . . . Device 19 | . . 25 33 18 18 14 22 25 17 Storage 7 | . 14 11 11 9 9 6 6 6 4 Processor 9 | . . . . . . 22 8 6 11 Protection 3 | . . . . 8 7 1 8 6 5 Energy Gun 5 | . . . . . 2 11 11 5 . Energy Cannon 3 | . . 4 22 9 5 . 1 6 3 Ballistic Gun 1 | . 18 3 . . . . . . . Impact Weapon 1 | . 9 10 . . . . . . . Slashing Weapon 2 | . . . . 8 9 2 . . . Naked Turns 2 | . . . . . . . . . 2 Heaviest Build 146 | 10 84 97 98 100 98 110 117 135 146 Greatest Support 150 | 26 26 40 40 89 80 86 96 120 150 Greatest Overweight (x) 38 | . 8 9 2 1 1 5 1 2 38 Average Overweight (x) 1 | . 1 3 2 1 1 1 1 1 . Largest Inventory Capacity 25 | 8 25 25 25 25 25 25 25 25 25 Average Capacity 24 | 5 15 25 25 25 25 24 25 25 23 Most Carried 25 | 5 8 25 25 25 25 25 25 25 25 Average Carried 22 | 3 5 15 24 24 24 24 24 24 22 Final Capacity 25 | 8 25 25 25 25 25 25 25 25 5 Final Carried 25 | 1 6 24 23 25 25 25 25 25 5 Class Distribution -------------------- 46% | Scavenger-Mutant 45% | Mutant 7% | Commander-Mutant Dominant Class ---------------- Mutant | -10/Materials Scavenger-Mutant | -9/Materials Scavenger-Mutant | -9/Mines Scavenger-Mutant | -8/Materials Scavenger-Mutant | -8/Storage Mutant | -7/Factory Mutant | -6/Factory Scavenger-Mutant | -6/Extension Scavenger-Mutant | -5/Factory Resources | -11 -10 -9 -9 -8 -8 -7 -6 -6 -5 ----------- Run | Yrd Mat Mat Min Mat Sto Fac Fac Ext Fac Matter Collected 2784 | 234 124 535 20 100 219 485 146 374 547 Remotely . | . . . . . . . . . . Salvage Created 8614 | . 414 1650 41 448 1658 1740 829 677 1157 Parts 416 | . 18 77 7 26 94 79 30 21 64 Haulers Intercepted 14 | . 2 5 . 1 2 2 1 . 1 Recyclers Shooed 8 | . 2 4 . . . 1 1 . . Parts Field Recycled . | . . . . . . . . . . Retrieved Matter . | . . . . . . . . . . Parts Self-Destructed . | . . . . . . . . . . Prevented . | . . . . . . . . . . Kills | -11 -10 -9 -9 -8 -8 -7 -6 -6 -5 ------- Run | Yrd Mat Mat Min Mat Sto Fac Fac Ext Fac Combat Hostiles Destroyed 133 | . 5 27 3 6 26 23 13 8 22 Melee 32 | . . 6 . 1 20 5 . . . Guns 48 | . 5 9 . . . 18 11 . 5 Cannons 48 | . . 10 3 5 5 . 2 6 17 Classes Destroyed 18 | . 7 3 . 1 1 2 . 1 3 Worker 15 | . . 4 . 2 2 4 . . 3 Builder 6 | . 1 1 . 1 2 1 . . . Tunneler 4 | . 1 . . . . 3 . . . Hauler 14 | . 2 5 . 1 2 2 1 . 1 Recycler 19 | . 2 5 . . 2 7 2 1 . Operator 1 | . . . . 1 . . . . . Drone 1 | . . . . . . . . . 1 Watcher 12 | . 1 1 . . 2 6 . 1 1 Swarmer 14 | . 3 3 3 . 2 . 3 . . Grunt 64 | . 2 18 . 2 15 14 3 5 5 Brawler 2 | . . . . . 2 . . . . Duelist 2 | . . 1 . . . . . . 1 Protector 1 | . . . . . . . . . 1 Sentry 22 | . . 5 . 4 7 1 3 2 . Specialist 1 | . . . . . . . . . 1 Hunter 11 | . . . . . . 2 2 . 7 Programmer 14 | . . . . . . 6 2 . 6 Behemoth 1 | . . . . . . . . 1 . Thug 1 | . . . . . . . . 1 . Savage 1 | . . . . . . . . . 1 Best Kill Streak 7 | . 4 5 3 4 7 7 3 2 6 Combat Bots Only 6 | . 3 5 3 3 6 4 3 2 5 Max Kills in Single Turn 2 | . 1 1 1 1 1 2 1 2 2 Gunslinging . | . . . . . . . . . . Exploded . | . . . . . . . . . . Melee 1 | . . 1 . 1 1 1 . . . Uniques/NPCs Destroyed . | . . . . . . . . . . Combat | -11 -10 -9 -9 -8 -8 -7 -6 -6 -5 -------- Run | Yrd Mat Mat Min Mat Sto Fac Fac Ext Fac Hostile Shots Fired 1244 | . 31 196 8 44 132 197 114 91 431 Missed 319 | . 12 43 3 8 26 50 34 27 116 Damage Taken 11140 | . 196 1124 27 422 1278 1652 707 965 4769 Core 2089 | . 44 229 . 58 116 296 64 268 1014 Absorbed by Shields 476 | . . 322 . . . . . 154 . Ignored by Resistances 3480 | . 59 444 10 117 367 480 233 441 1329 Regen/Repaired (Parts) 559 | . . . . . 65 494 . . . Core Remaining (%) 68 | 100 82 . 42 . 68 57 . 60 . Volleys Fired 446 | . 19 145 5 21 30 80 37 25 84 Largest 2 | . 2 2 2 2 1 2 2 2 2 Hottest 170 | . 40 136 136 136 68 150 170 170 138 Shots Fired 646 | . 37 149 10 22 30 122 73 50 153 Gun 356 | . 37 57 . . 1 121 70 25 45 Cannon 289 | . . 92 10 22 29 . 3 25 108 Launcher . | . . . . . . . . . . Special 1 | . . . . . . 1 . . . Kinetic 220 | . 37 101 . . . . . . 82 Thermal 423 | . . 48 10 22 30 121 73 50 69 Explosive . | . . . . . . . . . . Electromagnetic 2 | . . . . . . . . . 2 Robot Hit Streak 48 | . 11 26 4 13 16 48 38 16 22 Robot Miss Streak 4 | . 1 3 1 1 1 4 4 1 2 Penetration Max 1 | . . . . . . . . . 1 Secondary Targets 1 | . . . . . . . 1 . . Max Gunslinging Chain 1 | . . . . . . . 1 . . Shots Hit Robots 702 | . 44 166 5 29 94 124 67 42 131 Core Hits 427 | . 12 50 3 13 42 147 75 26 59 Critical Kills 7 | . 1 3 . . 2 . . 1 . Critical Parts Destroyed 7 | . . 6 . . . . . . 1 Critical Strikes 51 | . 1 13 . . 9 11 5 8 4 Burn 21 | . . . . . . 7 5 7 2 Meltdown 3 | . . . . . 2 . . 1 . Destroy 2 | . . 1 . . . . . . 1 Blast 5 | . . 4 . . . . . . 1 Smash 9 | . 1 8 . . . . . . . Sever 11 | . . . . . 7 4 . . . Melee Attacks 165 | . 12 40 . 9 79 25 . . . Impact 52 | . 12 40 . . . . . . . Slashing 113 | . . . . 9 79 25 . . . Piercing . | . . . . . . . . . . Sneak Attacks 30 | . 9 7 . 3 8 3 . . . Combat Hostiles . | . . . . . . . . . . Follow-up Attacks . | . . . . . . . . . . Damage Inflicted 19645 | . 991 3553 131 841 3239 3603 1668 1570 4049 Guns 5861 | . 260 461 . . . 2396 1568 385 791 Cannons 6670 | . . 1613 108 410 452 . 100 736 3251 Explosions 685 | . . . . . . 236 . 449 . Melee 6395 | . 727 1479 . 431 2787 971 . . . Ramming 34 | . 4 . 23 . . . . . 7 Kinetic 3743 | . 260 1168 . . . . . . 2315 Thermal 9440 | . . 906 108 410 452 2632 1668 1570 1694 Explosive . | . . . . . . . . . . Electromagnetic 33 | . . . . . . . . . 33 Impact 2206 | . 727 1479 . . . . . . . Slashing 4189 | . . . . 431 2787 971 . . . Piercing . | . . . . . . . . . . Highest Corruption 8 | . 8 . . . 3 2 1 2 7 Average Corruption 2 | . 8 . . . 3 1 1 1 5 Corruption Purged 7 | . . . . . . 3 1 2 1 Corruption Blocked . | . . . . . . . . . . Effects 59 | . 5 . . . 16 17 3 . 18 Message Errors 11 | . 1 . . . 2 3 . . 5 Matter Fused 19 | . 2 . . . 5 7 1 . 4 Heat Flow Errors 7 | . 1 . . . 2 3 1 . . Energy Discharges 5 | . 1 . . . 2 1 1 . . Data Loss (minor) 7 | . . . . . 2 . . . 5 Data Loss (major) 1 | . . . . . 1 . . . . Misfires 2 | . . . . . . 2 . . . Alerts 4 | . . . . . 2 1 . . 1 Weapon Failures 3 | . . . . . . . . . 3 Overload Shots . | . . . . . . . . . . Overflow Damage 1047 | . 265 329 . 4 162 213 . 5 69 Projectiles 97 | . . 2 . . 26 . . . 69 Explosions 96 | . . . . . . 91 . 5 . Melee 854 | . 265 327 . 4 136 122 . . . Knockbacks 31 | . 3 10 . . . . . . 18 Impact 7 | . 3 4 . . . . . . . Kinetic 22 | . . 6 . . . . . . 16 Secondary 2 | . . . . . . . . . 2 Self-Inflicted Damage 85 | . 2 . . . . . . 80 3 Shots 1 | . . . . . . . . 1 . Rammed 5 | . 1 . 2 . . . . . 2 Targets Rammed 6 | . 1 . 2 . . 1 . . 2 Kicked 1 | . . . . . . 1 . . . Crushed . | . . . . . . . . . . Highest Temperature 635 | . 211 24 . 205 156 222 558 635 189 Average Temperature 112 | . 54 8 . 105 71 43 143 180 42 Received Heat Transfer 3698 | . 117 584 . 243 837 966 213 246 492 Effects 19 | . . . . . . . 4 15 . Shutdowns 5 | . . . . . . . 1 4 . Matter Decay 2 | . . . . . . . . 2 . Short Circuit 4 | . . . . . . . 2 2 . Damage (minor) 3 | . . . . . . . 1 2 . Damage (major) 4 | . . . . . . . . 4 . Damage (core) 1 | . . . . . . . . 1 . Siege Activations . | . . . . . . . . . . Robots Corrupted . | . . . . . . . . . . Combat Hostiles . | . . . . . . . . . . Parts Fried 6 | . 4 2 . . . . . . . Impact Corruptions 19 | . 9 10 . . . . . . . Robots Melted 5 | . . . . . 2 . 1 2 . Combat Hostiles 3 | . . . . . 1 . . 2 . Parts Melted 34 | . . 3 1 2 6 1 9 6 6 Heat Transferred 14625 | . . 1554 185 740 814 3369 2846 2808 2309 Parts Sabotaged . | . . . . . . . . . . Parts Stolen . | . . . . . . . . . . Parts Stripped . | . . . . . . . . . . Power Chain Reactions . | . . . . . . . . . . Alert | -11 -10 -9 -9 -8 -8 -7 -6 -6 -5 ------- Run | Yrd Mat Mat Min Mat Sto Fac Fac Ext Fac Peak Influence 510 | . 176 247 107 298 510 222 137 392 466 Initial 138 | . . 3 37 34 36 138 9 27 . Average 106 | . 85 107 85 123 252 50 58 131 164 Maximum Alert Level 2 | . . 1 . 1 2 1 . 1 2 Low Security (%) 85 | 100 100 90 100 88 43 99 100 71 61 Level 1 13 | . . 9 . 11 41 . . 28 35 Level 2 1 | . . . . . 15 . . . 3 Level 3 . | . . . . . . . . . . Level 4 . | . . . . . . . . . . Level 5 . | . . . . . . . . . . High Security . | . . . . . . . . . . Max Security . | . . . . . . . . . . Squads Dispatched 33 | . . 7 . 1 8 10 3 1 3 Investigation 7 | . . 3 . . . 3 . 1 . Extermination 9 | . . . . . . 6 2 . 1 Reinforcement 9 | . . 4 . 1 . 1 1 . 2 Assault 2 | . . . . . 2 . . . . Garrison 6 | . . . . . 6 . . . . Intercept . | . . . . . . . . . . Searches Triggered . | . . . . . . . . . . Construction Impeded . | . . . . . . . . . . Haulers Reinforced 4 | . . . . . . 1 1 . 2 Active Scanning Responses . | . . . . . . . . . . Cargo Convoy Interrupts 1 | . . . . . . . . . 1 Stealth | -11 -10 -9 -9 -8 -8 -7 -6 -6 -5 --------- Run | Yrd Mat Mat Min Mat Sto Fac Fac Ext Fac Distress Signals 13 | . 2 4 . 1 4 . . 1 1 Communications Jammed 3 | . . . . . . 3 . . . Distress Signals . | . . . . . . . . . . Times Spotted 225 | . 8 39 3 9 46 34 13 29 44 Peak Tracking Total 9 | . 4 5 3 4 9 6 2 5 9 Tactical Retreats 6 | . . 1 . . 2 2 . . 1 Traps | -11 -10 -9 -9 -8 -8 -7 -6 -6 -5 ------- Run | Yrd Mat Mat Min Mat Sto Fac Fac Ext Fac Traps Triggered 7 | . 2 3 . . . . . 2 . Indirectly . | . . . . . . . . . . Trap Hack Attempts . | . . . . . . . . . . Triggered . | . . . . . . . . . . Disarmed . | . . . . . . . . . . Reprogrammed . | . . . . . . . . . . Reused . | . . . . . . . . . . Traps Extracted . | . . . . . . . . . . Installed . | . . . . . . . . . . Triggered . | . . . . . . . . . . Machines | -11 -10 -9 -9 -8 -8 -7 -6 -6 -5 ---------- Run | Yrd Mat Mat Min Mat Sto Fac Fac Ext Fac Machines Disabled 19 | . . 3 . . 3 5 . 6 2 Max in Single Turn 5 | . . 1 . . 1 5 . 2 1 Energy Cycler 1 | . . . . . . . . 1 . Machines Repaired . | . . . . . . . . . . Machines Dismantled . | . . . . . . . . . . Machines Sabotaged . | . . . . . . . . . . Overloaded Fab Kills . | . . . . . . . . . . Hacking | -11 -10 -9 -9 -8 -8 -7 -6 -6 -5 --------- Run | Yrd Mat Mat Min Mat Sto Fac Fac Ext Fac Machines Accessed 40 | . 5 5 1 1 5 10 2 9 2 Terminals 26 | . 4 3 . 1 3 4 . 9 2 Fabricators 2 | . . . . . . 2 . . . Repair Stations 3 | . . . . . 1 1 1 . . Recycling Units 5 | . 1 1 . . 1 1 1 . . Scanalyzers 3 | . . 1 . . . 2 . . . Garrison Access . | . . . . . . . . . . Total Hacks 110 | . 14 19 1 3 17 34 2 15 5 Successful 72 | . 7 15 1 1 10 26 1 8 3 Failed 38 | . 7 4 . 2 7 8 1 7 2 Catastrophic 9 | . 1 1 . 1 2 1 1 1 1 Database Lockouts . | . . . . . . . . . . Manual 42 | . 8 12 . 2 2 9 . 4 5 Terminals 73 | . 11 12 . 3 13 14 . 15 5 Fabricators 5 | . . . . . . 5 . . . Repair Stations 7 | . . . . . 2 4 1 . . Recycling Units 8 | . 3 1 . . 2 1 1 . . Scanalyzers 16 | . . 6 . . . 10 . . . Garrison Access . | . . . . . . . . . . Terminal Hacks 21 | . 1 5 1 . 5 3 . 6 . Record 1 | . . . . . . 1 . . . Part Schematic 2 | . . . . . . 2 . . . Robot Schematic 2 | . . . . . 2 . . . . Robot Analysis 4 | . 1 3 . . . . . . . Prototype ID Bank 1 | . . 1 . . . . . . . Open Door 8 | . . . 1 . 1 . . 6 . Branch Access Points 1 | . . . . . 1 . . . . Zone Layout 2 | . . 1 . . 1 . . . . Fabricator Hacks 4 | . . . . . . 4 . . . Network Status 1 | . . . . . . 1 . . . Load Schematic 1 | . . . . . . 1 . . . Build 2 | . . . . . . 2 . . . Repair Station Hacks 4 | . . . . . 2 2 . . . Scan Component 2 | . . . . . 1 1 . . . Repair 2 | . . . . . 1 1 . . . Recycling Unit Hacks 7 | . 2 1 . . 2 1 1 . . Report Inventory 4 | . 1 . . . 1 1 1 . . Retrieve Components 3 | . 1 1 . . 1 . . . . Scanalyzer 16 | . . 6 . . . 10 . . . Insert Component 7 | . . 3 . . . 4 . . . Analyze 9 | . . 3 . . . 6 . . . Garrison Access Hacks . | . . . . . . . . . . Unauthorized Hacks 20 | . 4 3 . 1 1 6 . 2 3 Terminals 20 | . 4 3 . 1 1 6 . 2 3 Assimilate 4 | . . . . . . 2 . . 2 Botnet 16 | . 4 3 . 1 1 4 . 2 1 Fabricators . | . . . . . . . . . . Repair Stations . | . . . . . . . . . . Recycling Units . | . . . . . . . . . . Scanalyzers . | . . . . . . . . . . Garrison Access . | . . . . . . . . . . Data Cores Recovered 2 | . . . . 1 . . . . 1 Used . | . . . . . . . . . . Hacking Detections 34 | . 5 5 . 1 4 9 1 7 2 Full Trace Events 7 | . 1 2 . . . 3 . 1 . Feedback Events . | . . . . . . . . . . Feedback Blocked . | . . . . . . . . . . Robot Schematics Acquired 2 | . . . . . 2 . . . . Robots Built 2 | . . . . . . 2 . . . Authchips . | . . . . . . . . . . Time 99 | . . . . . . 99 . . . Total Robot Build Rating 4 | . . . . . . 4 . . . Part Schematics Acquired 8 | . . 3 . . . 5 . . . Parts Built 1 | . . . . . . 1 . . . Authchips . | . . . . . . . . . . Time 76 | . . . . . . 76 . . . Total Part Build Rating 5 | . . . . . . 5 . . . Parts Repaired 2 | . . . . . 1 1 . . . Time 39 | . . . . . 13 26 . . . Parts Recycled . | . . . . . . . . . . Recycled Matter . | . . . . . . . . . . Retrieved Matter . | . . . . . . . . . . Retrieved Components 24 | . 4 10 . . 10 . . . . Parts Scanalyzed 6 | . . 3 . . . 3 . . . Part Schematics Acquired 6 | . . 3 . . . 3 . . . Parts Damaged . | . . . . . . . . . . Bothacking | -11 -10 -9 -9 -8 -8 -7 -6 -6 -5 ------------ Run | Yrd Mat Mat Min Mat Sto Fac Fac Ext Fac Used RIF Installer . | . . . . . . . . . . Robots Hacked . | . . . . . . . . . . Non-combat . | . . . . . . . . . . Combat . | . . . . . . . . . . Robot Hacks Applied . | . . . . . . . . . . Relay Couplers Released 3 | . . . . . . . . . 3 Programmers 3 | . . . . . . . . . 3 Fabnet Peak Effective % . | . . . . . . . . . . Robots Rewired 19 | . . . . . . . . 19 . Allies Hacked 1 | . . . . . . . . . 1 Hacks Repelled . | . . . . . . . . . . Allies | -11 -10 -9 -9 -8 -8 -7 -6 -6 -5 -------- Run | Yrd Mat Mat Min Mat Sto Fac Fac Ext Fac Total Allies 32 | . . . . . 2 2 . 27 1 Largest Group 11 | . . . . . 2 2 . 11 10 Highest-Rated Group 412 | . . . . . 62 30 . 412 393 Highest-Rated Ally 159 | . . . . . 31 15 . 159 137 Total Orders . | . . . . . . . . . . Ally Attacks 244 | . . . . . 23 18 . 180 23 Total Damage 4847 | . . . . . 398 381 . 3334 734 Kills 40 | . . . . . 3 2 . 29 6 Allies Corrupted . | . . . . . . . . . . Allies Melted 1 | . . . . . 1 . . . . Intel | -11 -10 -9 -9 -8 -8 -7 -6 -6 -5 ------- Run | Yrd Mat Mat Min Mat Sto Fac Fac Ext Fac Robot Analysis Total 4 | . 1 3 . . . . . . . Derelict Logs Recovered 1 | . . . 1 . . . . . . Drone Launches 10 | . . . . . . . . . 10 Drone Recoveries 7 | . . . . . . . . . 7 Exploration | -11 -10 -9 -9 -8 -8 -7 -6 -6 -5 ------------- Run | Yrd Mat Mat Min Mat Sto Fac Fac Ext Fac Turns Passed 13794 | 49 531 1981 292 635 1436 4423 1422 2006 1019 Spaces Moved 4698 | 48 373 546 84 223 431 1374 493 707 419 Core 63 | 23 . . . . . . . . 40 Treads 3481 | . . 48 84 223 431 1142 493 707 353 Legs 430 | . . 198 . . . 232 . . . Wheels 721 | 25 373 300 . . . . . . 23 Hover . | . . . . . . . . . . Flight 3 | . . . . . . . . . 3 Fastest Speed 37 | 50 80 130 320 240 240 195 225 228 37 Average Speed 224 | 74 110 260 320 241 241 245 227 235 162 Slowest Speed 1950 | 100 200 750 320 242 243 480 228 312 1950 Overloaded Moves . | . . . . . . . . . . Propulsion Burnouts . | . . . . . . . . . . Robots Hopped 3 | . . . . . . . . 3 . Cave-ins Triggered . | . . . . . . . . . . Exploration Rate (%) 34 | 3 64 43 28 18 57 34 8 79 9 Regions Visited 9 Branch Regions 3 Pre-discovered Areas 1 | . . . 1 . . . . . . Known Exits Taken . | . . . . . . . . . . Unknown Exits Taken 9 | 1 1 1 1 1 1 1 1 1 . Scrap Searched . | . . . . . . . . . . Spaces Dug 2 | . . . . . 2 . . . . Terrain Destroyed 70 | . . . . . 2 24 . 26 18 Melee 2 | . . . . . 2 . . . . Projectile 18 | . . . . . . . . . 18 AOE 50 | . . . . . . 24 . 26 . Terrain Rammed . | . . . . . . . . . . Walls Destroyed . | . . . . . . . . . . Machines Disabled . | . . . . . . . . . . Actions | -11 -10 -9 -9 -8 -8 -7 -6 -6 -5 --------- Run | Yrd Mat Mat Min Mat Sto Fac Fac Ext Fac Total 7077 | 59 444 905 97 293 685 2270 723 1007 594 Wait 1122 | . 15 82 . . 67 673 154 106 25 Move 4683 | 47 372 545 83 222 430 1373 492 700 419 Hop 3 | . . . . . . . . 3 . Pick Up 174 | 5 12 36 2 14 22 44 13 12 14 Fast Attach 52 | 2 2 6 . 3 6 15 3 3 12 Attach 37 | 4 1 5 . 1 3 6 2 . 15 Detach 1 | . . . . . . . . 1 . Swap 102 | 1 2 17 1 6 16 17 9 22 11 Drop 175 | . 8 29 4 17 32 36 13 24 12 Fire 446 | . 19 145 5 21 30 80 37 25 84 Melee 165 | . 12 40 . 9 79 25 . . . Ram 2 | . 1 . . . . . . . 1 Kick 1 | . . . . . . 1 . . . Crush 3 | . . . 2 . . . . . 1 Escape Stasis 4 | . . . . . . . . 4 . Rewire 107 | . . . . . . . . 107 . Trap . | . . . . . . . . . . Miscellaneous . | . . . . . . . . . . Route ------- -11/Scrapyard -10/Materials (discovered 2 exits: *Mat / [*Min]) -9/Materials (discovered 2 exits: *Mat / *Min) -9/Mines -8/Materials -8/Storage (discovered 2 exits: *Fac / Rec) -7/Factory -6/Factory -6/Extension (discovered 3 exits: *Fac x2 / [*Cet]) -5/Factory History --------- Turn | Location | Event 9 | -11/Scrapyard | Discovered new exit (range 16) 50 | -11/Scrapyard | Entered Materials 169 | -10/Materials | Discovered new exit (range 14) 308 | -10/Materials | Build established: Mutant 558 | -10/Materials | Discovered new exit (range 6) 581 | -10/Materials | Entered another Materials area 581 | -9/Materials | Evolved 2 slots: Utility x2 843 | -9/Materials | Discovered new exit (range 12) 1225 | -9/Materials | Build established: Scavenger-Mutant 2231 | -9/Materials | Discovered new exit (range 15) 2238 | -9/Materials | Core integrity fell below 50% 2562 | -9/Materials | Entered Mines 2759 | -9/Mines | Discovered new exit (range 15) 2815 | -9/Mines | Found the Drone Emporium 2831 | -9/Mines | Found Prototype Device 2832 | -9/Mines | Learned location of Zion (-7) 2854 | -9/Mines | Entered Materials 2854 | -8/Materials | Evolved 2 slots: Propulsion x2 2858 | -8/Materials | Discovered new exit (range 14) 3489 | -8/Materials | Entered Storage 3589 | -8/Storage | Identified exit to Recycling 3672 | -8/Storage | Repaired Lgt. Treads 3835 | -8/Storage | Garrison activated, responded to threat 4013 | -8/Storage | Met a pair of Derelict thieves 4220 | -8/Storage | Garrison activated, responded to threat 4843 | -8/Storage | Discovered new exit (range 11) 4925 | -8/Storage | Entered Factory 4925 | -7/Factory | Evolved 2 slots: Utility x2 5505 | -7/Factory | Fabricated Cold Fusion Reactor (x1) 5676 | -7/Factory | Build established: Mutant 6031 | -7/Factory | Repaired Huge Storage Unit 6204 | -7/Factory | Build established: Scavenger-Mutant 6384 | -7/Factory | Fabricated Y-45 Defender? 6756 | -7/Factory | Lost 4 parts (3n1w) 7002 | -7/Factory | Build established: Mutant 7595 | -7/Factory | Identified Splice Drone Bay 9332 | -7/Factory | Discovered new exit (range 7) 9348 | -7/Factory | Entered another Factory area 9348 | -6/Factory | Evolved 2 slots: Power x1, Utility x1 10738 | -6/Factory | Discovered new exit (range 15) 10770 | -6/Factory | Entered Extension 10786 | -6/Extension | Disrupted transfer network 10918 | -6/Extension | Rescued a captive Derelict 10946 | -6/Extension | Rescued a captive Derelict 10946 | -6/Extension | Rescued a captive Derelict 11089 | -6/Extension | Rescued a captive Derelict 11090 | -6/Extension | Rescued a captive Derelict 11278 | -6/Extension | P-60 Hacker assimilated allied 60-HZQ(g) 11312 | -6/Extension | Lost 4 allies 11313 | -6/Extension | Energy Cycler disabled 11314 | -6/Extension | Rescued a captive Derelict 11314 | -6/Extension | Rescued a captive Derelict 11314 | -6/Extension | Rescued a captive Derelict 11314 | -6/Extension | Rescued a captive Derelict 11318 | -6/Extension | Rescued a captive Derelict 11319 | -6/Extension | Rescued a captive Derelict 11323 | -6/Extension | Rescued a captive Derelict 11332 | -6/Extension | Rescued A7 11529 | -6/Extension | Lost 6 allies 11549 | -6/Extension | Spotted B-75 Beast 11563 | -6/Extension | Spotted B-75 Beast 11587 | -6/Extension | Destroyed B-75 Beast 11588 | -6/Extension | Allies destroyed B-75 Beast 11601 | -6/Extension | Discovered new exit (range 14) 11783 | -6/Extension | Build established: Scavenger-Mutant 11991 | -6/Extension | Discovered new exit (range 16) 11994 | -6/Extension | Discovered new exit (range 15) 12576 | -6/Extension | Build established: Commander-Mutant 12776 | -6/Extension | Entered Factory 12776 | -5/Factory | Accompanied by 10 allies (A7) 12776 | -5/Factory | Evolved 2 slots: Propulsion x1, Utility x1 13257 | -5/Factory | Lost 7 allies 13308 | -5/Factory | Cargo convoy interrupted 13310 | -5/Factory | P-70 Sage assimilated allied T3-68M(b) 13401 | -5/Factory | Lost 3 parts (2n1u) 13538 | -5/Factory | Build established: Scavenger-Mutant 13666 | -5/Factory | Lost 4 parts (2n1u1w) 13719 | -5/Factory | Core integrity fell below 50% 13728 | -5/Factory | Released all parts (6) 13779 | -5/Factory | Core integrity fell below 20% 13795 | -5/Factory | Destroyed by H-66 Slayer with Gauss Rifle Last Messages --------------- Awaiting botnet instructions. 13785_ O-16 Technician accesses terminal... 13785_ O-16 Technician IFF database reprogrammed. 13786_ Slug penetrates Power Conduit. 13786_ Slug penetrates Technician 6a. 13786_ Technician 6a destroyed. 13787_ Acquired Xenon Bombardment Thruster. 13789_ Penetrated by Slug. 13790_ Power Conduit explodes. 13790_ Terminal disabled. 13790_ K-01 Serf collects debris. 13791_ Acquired Lightning Gun. 13791_ Penetrated by Slug. 13793_ The unstable cave ceiling collapses. 13794_ Xenon Bombardment Thruster destroyed. 13794_ Penetrated by Slug. 13794_ K-01 Serf collects debris. 13794_ Slug penetrates Wall. 13795_ Penetrated by Slug. Map ----- +----------------------------------------------------+ | ?????????????????????????????????????????????????? | | ???????????????????????????????????????????????##? | | ??????????????????????????????????????????????? ? | | ?????????????????????????????+#???????????????? ? | | ???????????????????????????# ???????????????# ? | | ???????????????????????????# #??????????????# ? | | ???????????????????????????# #??????????????# #? | | ???????????????????????????# #?###+######???# #? | | ?????????????????????????### ### #???# #? | | ?????????????????????????# [ #""" #???# #? | | ????????????????????######= #""" ##### #? | | ????????????????????? """ / #? | | ????????????????????? ##### #? | | ?????????????????????? A #???# #? | | ???????????????????####### w ! #???# #? | | ?????????????????### # #???# #? | | ???????????#######;;;;;;;;; # #???# #? | | ??????????? ] ; k # ##???# #? | | ??????????? ; ;Y g # ##????# #? | | ??????????+ ; ; #?????# #? | | ??????????# ; ; ######?????# #? | | ??????????# ; ; #??????????# #? | | ??????????# ! ; ; """ #?##########/## | | ??????????# ; ; """ =+ | | ??????????# ! ; ; """ ########### | | ????????????######### @# #?????????# """ | | ????????????????????# # #?????????# """ | | ????????????????????# Y # ####?????????# """ | | ????????????????????# ! # #????????????# """ | | ????????????????????# ##### #????????????# | | ????????????????????##????# #????????????# "" | | ??????????????????????????# ?????????????# """ | | ??????????????????????????# ?????????????# """ | | ??????????????????????????? ?????????????# """ | | ??????????????????????????? ???????????????# | | ?????????????????????????????????????????????##### | | ?????????????????????????????????????????????????? | | ?????????????????????????????????????????????????? | | ?????????????????????????????????????????????????? | | ?????????????????????????????????????????????????? | | ?????????????????????????????????????????????????? | | ?????????????????????????????????????????????????? | | ?????????????????????????????????????????????????? | | ?????????????????????????????????????????????????? | | ?????????????????????????????????????????????????? | | ?????????????????????????????????????????????????? | | ?????????????????????????????????????????????????? | | ?????????????????????????????????????????????????? | | ?????????????????????????????????????????????????? | | ?????????????????????????????????????????????????? | +----------------------------------------------------+ Best States ------------- Heat Dissipation 71 Energy Generation 34 Energy Capacity 700 Matter Stores 300 Matter Capacity 300 Sight Range 16 Terrain Scan Range 20 Terrain Scan Density 10 ECM Strength 2 Jamming Range 12 Additional Mass Support 9 Base Temperature (-) 100 Armor Coverage 450 Resistance: KI 40 Resistance: TH 35 Resistance: EX 20 Resistance: EM 20 Resistance: I 20 Resistance: S 20 Resistance: P 20 Evasion (%) 50 Targeting Accuracy 18 Target Analysis 5 Core Analysis 6 Recoil Reduction 5 Particle Charging 20 Kinecelleration 40 Offensive Hacking 10 Item Schematics ----------------- Hvy. Hammer | -9/Materials | Scanalyzed Lgt. Cannon | -9/Materials | Scanalyzed Shield Generator | -9/Materials | Scanalyzed Power Amplifier | -7/Factory | Hacked Gyrokinetic Inverter | -7/Factory | Hacked Imp. Spread Laser | -7/Factory | Scanalyzed Cld. Ion Engine | -7/Factory | Scanalyzed Armor Integrity Analyzer | -7/Factory | Scanalyzed Robot Schematics ------------------ O-24 Administrator | -8/Storage | Hacked Y-45 Defender | -8/Storage | Hacked Fabricated ------------ Cold Fusion Reactor | x1 | -7/Factory | Preloaded Y-45 Defender | x2 | -7/Factory Alien Tech Used ----------------- None Achievements -------------- Error 47 Prison Break Challenges ------------ None Game ------ Seed TargetUtilityDriver Manual? 0 Play Time 01:52:47 Cumulative 57.4 hours Start 2024.07.22 @ 08:13:31 End 2024.07.22 @ 12:21:38 Sessions 1 Manual Loads 0 Difficulty Adventurer Special Mode None Game No. 87 Rogue 0 Adventurer 87 Explorer 0 Win Type - Total 0 Types 0/0/0/0/0/0/0/0/0 Lore% 42 Gallery% 41 Achievement% 32 Wizard Run 0 Options --------- Layout 2 ASCII 0 Keyboard 0 Movement Mouse Keybinds 0 Fullscreen 2 Font 48/Smallcaps Map View 50x44 Zoom Use 0% Tactical HUD 1 Map Filters NONE Filters NONE Steam 1 RUN: 40b57b9f-e68e-41f1-b193-7f1162fe49e6